[Event "Late-Titled-Tuesday-Blitz-July-09-2024"]
[Site "Chess.com"]
[Date "2024.07.09"]
[Round "4"]
[White "Yaacovn"]
[Black "Chigorinetz"]
[Result "0-1"]
[WhiteElo "2780"]
[BlackElo "2603"]
[TimeControl "180+1"]
[EndTime "14:38:47 PDT"]
[Termination "Chigorinetz won on time"]

1. d4 {[%clk 0:02:55.8]} 1... d5 {[%clk 0:02:59.2]} 2. Nf3 {[%clk 0:02:53.9]}
2... Nc6 {[%clk 0:02:59.3]} 3. c3 {[%clk 0:02:48]} 3... Bg4 {[%clk 0:02:58.7]}
4. Qb3 {[%clk 0:02:46.5]} 4... Rb8 {[%clk 0:02:56.5]} 5. Bf4 {[%clk 0:02:05.2]}
5... e6 {[%clk 0:02:51.4]} 6. Nbd2 {[%clk 0:01:29.7]} 6... Bd6 {[%clk
0:02:50.5]} 7. Bg3 {[%clk 0:01:17.7]} 7... Nf6 {[%clk 0:02:50.4]} 8. e3 {[%clk
0:01:04.6]} 8... O-O {[%clk 0:02:49.6]} 9. Bd3 {[%clk 0:00:46.2]} 9... b5 {[%clk
0:02:48.6]} 10. Ne5 {[%clk 0:00:43.9]} 10... Bxe5 {[%clk 0:02:44]} 11. dxe5
{[%clk 0:00:43.1]} 11... Nd7 {[%clk 0:02:44]} 12. Qc2 {[%clk 0:00:43.1]} 12...
h6 {[%clk 0:02:23.3]} 13. h3 {[%clk 0:00:39]} 13... Bh5 {[%clk 0:02:22.2]} 14.
f4 {[%clk 0:00:39.3]} 14... Nc5 {[%clk 0:02:19.1]} 15. Nb3 {[%clk 0:00:36.9]}
15... Nxd3+ {[%clk 0:02:18.3]} 16. Qxd3 {[%clk 0:00:37.8]} 16... b4 {[%clk
0:02:06]} 17. O-O {[%clk 0:00:36.2]} 17... Bg6 {[%clk 0:02:01.9]} 18. Qd2 {[%clk
0:00:35.4]} 18... a5 {[%clk 0:01:58.3]} 19. Nd4 {[%clk 0:00:33.7]} 19... Ne7
{[%clk 0:01:56.9]} 20. cxb4 {[%clk 0:00:32.3]} 20... axb4 {[%clk 0:01:52.8]} 21.
Bh4 {[%clk 0:00:32.6]} 21... Rb6 {[%clk 0:01:41.8]} 22. Rfc1 {[%clk 0:00:31.6]}
22... Qd7 {[%clk 0:01:41.8]} 23. Bxe7 {[%clk 0:00:30.9]} 23... Qxe7 {[%clk
0:01:41.4]} 24. Rc6 {[%clk 0:00:30.8]} 24... Rb7 {[%clk 0:01:20.5]} 25. Rac1
{[%clk 0:00:29.6]} 25... Ra8 {[%clk 0:01:20]} 26. b3 {[%clk 0:00:26.5]} 26...
Be4 {[%clk 0:01:19.8]} 27. R6c5 {[%clk 0:00:24.2]} 27... Qh4 {[%clk 0:00:57.5]}
28. Kh2 {[%clk 0:00:23.6]} 28... Rba7 {[%clk 0:00:56]} 29. Rxc7 {[%clk
0:00:18.7]} 29... Rxa2 {[%clk 0:00:55.2]} 30. Nc2 {[%clk 0:00:10.9]} 30... Rb2
{[%clk 0:00:49]} 31. Qxb4 {[%clk 0:00:09.2]} 31... Qf2 {[%clk 0:00:43.5]} 32.
Rg1 {[%clk 0:00:07.6]} 32... Rxc2 {[%clk 0:00:42.3]} 33. Rxc2 {[%clk 0:00:07.5]}
33... Qxc2 {[%clk 0:00:40.9]} 34. Qb7 {[%clk 0:00:07.3]} 34... Ra2 {[%clk
0:00:37.8]} 35. f5 {[%clk 0:00:03.1]} 35... Bxg2 {[%clk 0:00:31.1]} 0-1

[Event "Late-Titled-Tuesday-Blitz-July-09-2024"]
[Site "Chess.com"]
[Date "2024.07.09"]
[Round "4"]
[White "Fjal"]
[Black "koncheto"]
[Result "0-1"]
[WhiteElo "2399"]
[BlackElo "2667"]
[TimeControl "180+1"]
[EndTime "14:38:47 PDT"]
[Termination "koncheto won by resignation"]

1. Nf3 {[%clk 0:03:00.9]} 1... Nf6 {[%clk 0:02:58.3]} 2. g3 {[%clk 0:03:01.2]}
2... b6 {[%clk 0:02:58.3]} 3. Bg2 {[%clk 0:03:02.1]} 3... Bb7 {[%clk 0:02:59.2]}
4. O-O {[%clk 0:03:02.4]} 4... c5 {[%clk 0:02:59.9]} 5. c4 {[%clk 0:03:00.1]}
5... e6 {[%clk 0:03:00.3]} 6. b3 {[%clk 0:03:00.1]} 6... Be7 {[%clk 0:03:00.3]}
7. Bb2 {[%clk 0:03:00]} 7... O-O {[%clk 0:03:01]} 8. Nc3 {[%clk 0:02:59.7]} 8...
d5 {[%clk 0:03:00.7]} 9. cxd5 {[%clk 0:02:59.3]} 9... Nxd5 {[%clk 0:03:01.6]}
10. d4 {[%clk 0:02:51.7]} 10... Bf6 {[%clk 0:02:59.1]} 11. Nxd5 {[%clk
0:02:44.1]} 11... Bxd5 {[%clk 0:02:57.9]} 12. Qd2 {[%clk 0:02:34.6]} 12... Nd7
{[%clk 0:02:44.9]} 13. Rfd1 {[%clk 0:02:30.9]} 13... Qe7 {[%clk 0:02:39.4]} 14.
Qe3 {[%clk 0:02:16.3]} 14... Rfd8 {[%clk 0:02:28.5]} 15. Rac1 {[%clk 0:02:09]}
15... Rac8 {[%clk 0:02:28.4]} 16. Bc3 {[%clk 0:02:07.5]} 16... Bxf3 {[%clk
0:02:06.8]} 17. Bxf3 {[%clk 0:02:04.2]} 17... Bg5 {[%clk 0:02:06.9]} 18. Qd3
{[%clk 0:01:55.6]} 18... Bxc1 {[%clk 0:02:04]} 19. Rxc1 {[%clk 0:01:56.5]} 19...
Ne5 {[%clk 0:02:00.9]} 20. Qe3 {[%clk 0:01:48.3]} 20... Nxf3+ {[%clk 0:01:59.4]}
21. Qxf3 {[%clk 0:01:47.8]} 21... cxd4 {[%clk 0:01:59.6]} 22. Bd2 {[%clk
0:01:47.2]} 22... Rxc1+ {[%clk 0:01:59.7]} 23. Bxc1 {[%clk 0:01:48.1]} 23... e5
{[%clk 0:01:43.2]} 24. h4 {[%clk 0:01:46.2]} 24... e4 {[%clk 0:01:41.3]} 25. Qg4
{[%clk 0:01:43.4]} 25... Qe6 {[%clk 0:01:19.1]} 26. Qg5 {[%clk 0:01:40.7]} 26...
f6 {[%clk 0:01:19.3]} 27. Qf4 {[%clk 0:01:36.9]} 27... d3 {[%clk 0:01:15.9]} 28.
exd3 {[%clk 0:01:36.7]} 28... exd3 {[%clk 0:01:16.8]} 29. Bd2 {[%clk 0:01:37]}
29... h5 {[%clk 0:00:50.2]} 30. Qc7 {[%clk 0:00:55.5]} 30... Re8 {[%clk
0:00:33.4]} 31. Qxa7 {[%clk 0:00:49.7]} 31... Qe2 {[%clk 0:00:32.7]} 32. Qd7
{[%clk 0:00:50.1]} 32... Re4 {[%clk 0:00:10]} 33. Qd5+ {[%clk 0:00:48.4]} 33...
Kf8 {[%clk 0:00:07.8]} 34. Bb4+ {[%clk 0:00:47.8]} 34... Rxb4 {[%clk 0:00:07.1]}
35. Qd6+ {[%clk 0:00:45.5]} 35... Qe7 {[%clk 0:00:07.7]} 36. Qxd3 {[%clk
0:00:43.6]} 36... Re4 {[%clk 0:00:08]} 37. Kh2 {[%clk 0:00:41.5]} 37... Re1
{[%clk 0:00:06.6]} 38. Qh7 {[%clk 0:00:41.8]} 38... Qe4 {[%clk 0:00:04]} 39.
Qh8+ {[%clk 0:00:37.3]} 39... Kf7 {[%clk 0:00:04.3]} 40. Qxh5+ {[%clk
0:00:37.2]} 40... Kg8 {[%clk 0:00:04.4]} 0-1

[Event "Late-Titled-Tuesday-Blitz-July-09-2024"]
[Site "Chess.com"]
[Date "2024.07.09"]
[Round "4"]
[White "Queensandpawns"]
[Black "1g60-1"]
[Result "1-0"]
[WhiteElo "2324"]
[BlackElo "2459"]
[TimeControl "180+1"]
[EndTime "14:38:51 PDT"]
[Termination "Queensandpawns won by resignation"]

1. e4 {[%clk 0:03:00.9]} 1... e6 {[%clk 0:03:00.2]} 2. d4 {[%clk 0:03:00.9]}
2... d5 {[%clk 0:03:00.4]} 3. Nd2 {[%clk 0:03:01.5]} 3... Nf6 {[%clk 0:02:59.7]}
4. e5 {[%clk 0:03:00.1]} 4... Nfd7 {[%clk 0:03:00]} 5. Ne2 {[%clk 0:03:00.7]}
5... c5 {[%clk 0:03:00.2]} 6. Nf3 {[%clk 0:03:01.2]} 6... Nc6 {[%clk 0:02:59.8]}
7. c3 {[%clk 0:03:01.2]} 7... a5 {[%clk 0:02:59.6]} 8. Be3 {[%clk 0:02:58.6]}
8... Qb6 {[%clk 0:02:56.4]} 9. Rb1 {[%clk 0:02:58]} 9... a4 {[%clk 0:02:51.4]}
10. Ng3 {[%clk 0:02:53.6]} 10... cxd4 {[%clk 0:02:49.6]} 11. cxd4 {[%clk
0:02:53.9]} 11... Bb4+ {[%clk 0:02:46.9]} 12. Ke2 {[%clk 0:02:19.7]} 12... f6
{[%clk 0:02:33.6]} 13. a3 {[%clk 0:02:17.3]} 13... Be7 {[%clk 0:02:28.3]} 14.
Ke1 {[%clk 0:02:14.6]} 14... O-O {[%clk 0:02:20.5]} 15. Bd3 {[%clk 0:02:10]}
15... fxe5 {[%clk 0:02:19.1]} 16. dxe5 {[%clk 0:02:10.9]} 16... Qa5+ {[%clk
0:02:08]} 17. Bd2 {[%clk 0:02:04.2]} 17... Qc7 {[%clk 0:02:01.2]} 18. h4 {[%clk
0:01:53.1]} 18... Rxf3 {[%clk 0:02:00.9]} 19. gxf3 {[%clk 0:01:49.2]} 19...
Ndxe5 {[%clk 0:01:54.9]} 20. Qc2 {[%clk 0:01:41.6]} 20... Nxd3+ {[%clk
0:01:51.6]} 21. Qxd3 {[%clk 0:01:42.5]} 21... Ne5 {[%clk 0:01:36.9]} 22. Qe2
{[%clk 0:01:17.6]} 22... Nc4 {[%clk 0:01:27.7]} 23. Bc3 {[%clk 0:01:13.2]} 23...
Qf4 {[%clk 0:01:17.2]} 24. Kf1 {[%clk 0:01:09.3]} 24... e5 {[%clk 0:01:09.5]}
25. Kg2 {[%clk 0:01:07.9]} 25... b5 {[%clk 0:01:00.2]} 26. Rbe1 {[%clk
0:01:06.8]} 26... d4 {[%clk 0:00:57.3]} 27. Bb4 {[%clk 0:00:58.8]} 27... Bxb4
{[%clk 0:00:56.7]} 28. axb4 {[%clk 0:00:59.7]} 28... Bb7 {[%clk 0:00:56.8]} 29.
Ne4 {[%clk 0:00:56.7]} 29... Rf8 {[%clk 0:00:50.5]} 30. Rh3 {[%clk 0:00:55.6]}
30... h6 {[%clk 0:00:28.5]} 31. Rg3 {[%clk 0:00:46.9]} 31... Kh7 {[%clk
0:00:27.7]} 32. Nc5 {[%clk 0:00:38.7]} 32... Bd5 {[%clk 0:00:20.6]} 33. Nd3
{[%clk 0:00:37.9]} 33... Qxh4 {[%clk 0:00:16.9]} 34. Nxe5 {[%clk 0:00:37.9]}
34... Re8 {[%clk 0:00:12.7]} 35. Qd3+ {[%clk 0:00:30.9]} 35... Kg8 {[%clk
0:00:10.9]} 36. Qg6 {[%clk 0:00:29.9]} 36... Qe7 {[%clk 0:00:02.1]} 37. Nxc4
{[%clk 0:00:28.2]} 37... Bxc4 {[%clk 0:00:02.2]} 38. Rxe7 {[%clk 0:00:27.4]}
38... Rxe7 {[%clk 0:00:03.1]} 1-0

[Event "Late-Titled-Tuesday-Blitz-July-09-2024"]
[Site "Chess.com"]
[Date "2024.07.09"]
[Round "4"]
[White "Fraler15"]
[Black "Boorchess"]
[Result "1-0"]
[WhiteElo "2351"]
[BlackElo "2523"]
[TimeControl "180+1"]
[EndTime "14:38:56 PDT"]
[Termination "Fraler15 won by resignation"]

1. d4 {[%clk 0:03:00.9]} 1... Nf6 {[%clk 0:02:59.4]} 2. c4 {[%clk 0:03:00.2]}
2... d6 {[%clk 0:02:59.3]} 3. Nf3 {[%clk 0:02:57.9]} 3... Bf5 {[%clk 0:02:55.3]}
4. g3 {[%clk 0:02:57]} 4... c6 {[%clk 0:02:55.1]} 5. Bg2 {[%clk 0:02:57.4]} 5...
e6 {[%clk 0:02:55.4]} 6. O-O {[%clk 0:02:57.3]} 6... h6 {[%clk 0:02:55.1]} 7.
Nc3 {[%clk 0:02:55.7]} 7... d5 {[%clk 0:02:55.4]} 8. Qb3 {[%clk 0:02:52.3]} 8...
Qb6 {[%clk 0:02:54.9]} 9. c5 {[%clk 0:02:52]} 9... Qc7 {[%clk 0:02:49.6]} 10.
Bf4 {[%clk 0:02:51.1]} 10... Qc8 {[%clk 0:02:49.7]} 11. Nd2 {[%clk 0:02:31.8]}
11... Be7 {[%clk 0:02:47.7]} 12. e4 {[%clk 0:02:30.9]} 12... dxe4 {[%clk
0:02:34.2]} 13. Ndxe4 {[%clk 0:02:28.2]} 13... O-O {[%clk 0:02:28.8]} 14. Bd6
{[%clk 0:02:21]} 14... Nxe4 {[%clk 0:02:21.8]} 15. Bxe4 {[%clk 0:01:48.4]} 15...
Bxd6 {[%clk 0:02:17.9]} 16. cxd6 {[%clk 0:01:40.7]} 16... Rd8 {[%clk 0:02:15.9]}
17. Bxf5 {[%clk 0:01:39.7]} 17... exf5 {[%clk 0:02:16.1]} 18. Rfe1 {[%clk
0:01:19.6]} 18... Rxd6 {[%clk 0:02:11]} 19. Re7 {[%clk 0:01:18.5]} 19... Re6
{[%clk 0:02:01.6]} 20. Rxb7 {[%clk 0:01:04.8]} 20... Nd7 {[%clk 0:02:00.8]} 21.
Rb4 {[%clk 0:00:48]} 21... Rd6 {[%clk 0:01:38.6]} 22. Re1 {[%clk 0:00:44.3]}
22... Nb6 {[%clk 0:01:20.5]} 23. a4 {[%clk 0:00:37.7]} 23... f4 {[%clk
0:01:07.2]} 24. a5 {[%clk 0:00:34.3]} 24... fxg3 {[%clk 0:01:05.4]} 25. hxg3
{[%clk 0:00:33.6]} 25... Nd5 {[%clk 0:01:02.9]} 26. Nxd5 {[%clk 0:00:32.5]}
26... Rxd5 {[%clk 0:01:02.1]} 27. Re7 {[%clk 0:00:30.1]} 27... Qf5 {[%clk
0:00:56.8]} 28. Rbb7 {[%clk 0:00:20.7]} 28... Rf8 {[%clk 0:00:54.9]} 29. Rxa7
{[%clk 0:00:19.9]} 29... Rxd4 {[%clk 0:00:51.4]} 30. Kg2 {[%clk 0:00:19.3]}
30... Rd2 {[%clk 0:00:48.1]} 31. Qf3 {[%clk 0:00:18.2]} 31... Qxf3+ {[%clk
0:00:48]} 32. Kxf3 {[%clk 0:00:17.8]} 32... Rxb2 {[%clk 0:00:48.5]} 33. a6
{[%clk 0:00:18.4]} 33... Ra2 {[%clk 0:00:48.3]} 34. Rec7 {[%clk 0:00:16.6]}
34... Rd8 {[%clk 0:00:43.3]} 35. Rxf7 {[%clk 0:00:16.2]} 35... Rf8 {[%clk
0:00:43.2]} 36. Rxf8+ {[%clk 0:00:15.9]} 36... Kxf8 {[%clk 0:00:43.4]} 37. Ke3
{[%clk 0:00:15.8]} 37... c5 {[%clk 0:00:41.5]} 38. f4 {[%clk 0:00:14.5]} 38...
Ra3+ {[%clk 0:00:39.1]} 39. Ke4 {[%clk 0:00:13.3]} 39... Rxg3 {[%clk 0:00:37.6]}
40. Rb7 {[%clk 0:00:12.8]} 40... Ra3 {[%clk 0:00:30.4]} 41. a7 {[%clk
0:00:12.7]} 41... Kg8 {[%clk 0:00:29.8]} 42. Rb8+ {[%clk 0:00:12.8]} 42... Kh7
{[%clk 0:00:29.8]} 43. a8=Q {[%clk 0:00:13.4]} 43... Rxa8 {[%clk 0:00:29.9]} 44.
Rxa8 {[%clk 0:00:14]} 44... h5 {[%clk 0:00:29.9]} 45. Rc8 {[%clk 0:00:14.6]}
45... h4 {[%clk 0:00:29.2]} 46. Rxc5 {[%clk 0:00:15.1]} 46... Kh6 {[%clk
0:00:29.8]} 47. Kf3 {[%clk 0:00:14]} 1-0

[Event "Late-Titled-Tuesday-Blitz-July-09-2024"]
[Site "Chess.com"]
[Date "2024.07.09"]
[Round "4"]
[White "Bykov_Egor"]
[Black "GiorgianBarbosa"]
[Result "1-0"]
[WhiteElo "2692"]
[BlackElo "2515"]
[TimeControl "180+1"]
[EndTime "14:38:57 PDT"]
[Termination "Bykov_Egor won on time"]

1. Nf3 {[%clk 0:03:00.9]} 1... Nf6 {[%clk 0:02:59.6]} 2. g3 {[%clk 0:03:00.9]}
2... e6 {[%clk 0:03:00.5]} 3. Bg2 {[%clk 0:03:01.4]} 3... d5 {[%clk 0:03:00.8]}
4. d4 {[%clk 0:03:01.2]} 4... Be7 {[%clk 0:03:01.7]} 5. O-O {[%clk 0:03:01.5]}
5... O-O {[%clk 0:03:02.6]} 6. c4 {[%clk 0:03:02]} 6... a5 {[%clk 0:03:02.6]} 7.
Nbd2 {[%clk 0:02:59.4]} 7... c6 {[%clk 0:03:02.4]} 8. Qc2 {[%clk 0:02:58.1]}
8... b6 {[%clk 0:03:02.3]} 9. e4 {[%clk 0:02:57.2]} 9... Ba6 {[%clk 0:03:01.7]}
10. Re1 {[%clk 0:02:43.3]} 10... Nbd7 {[%clk 0:02:56.3]} 11. b3 {[%clk
0:02:13.7]} 11... Rc8 {[%clk 0:02:50]} 12. Bb2 {[%clk 0:02:09.4]} 12... c5
{[%clk 0:02:41.3]} 13. Rac1 {[%clk 0:01:27.6]} 13... cxd4 {[%clk 0:02:35.5]} 14.
e5 {[%clk 0:01:24.5]} 14... d3 {[%clk 0:02:13.4]} 15. Qxd3 {[%clk 0:01:21.5]}
15... Nc5 {[%clk 0:02:09.3]} 16. Qe3 {[%clk 0:00:57.7]} 16... Nfe4 {[%clk
0:02:01.6]} 17. h4 {[%clk 0:00:57.9]} 17... Nxd2 {[%clk 0:01:56.7]} 18. Nxd2
{[%clk 0:00:46.7]} 18... dxc4 {[%clk 0:01:49.7]} 19. Nxc4 {[%clk 0:00:46.5]}
19... Qd3 {[%clk 0:01:37.1]} 20. Nxb6 {[%clk 0:00:41.2]} 20... Rb8 {[%clk
0:01:14.2]} 21. Nc4 {[%clk 0:00:39.3]} 21... a4 {[%clk 0:00:58.4]} 22. Ba3
{[%clk 0:00:26.6]} 22... Qxe3 {[%clk 0:00:53.1]} 23. Rxe3 {[%clk 0:00:25.8]}
23... axb3 {[%clk 0:00:51.3]} 24. axb3 {[%clk 0:00:23.3]} 24... Nxb3 {[%clk
0:00:24.2]} 25. Rxb3 {[%clk 0:00:22.4]} 25... Rxb3 {[%clk 0:00:14.9]} 26. Bxe7
{[%clk 0:00:22.8]} 26... Rc8 {[%clk 0:00:13.7]} 27. Bf1 {[%clk 0:00:23.1]} 27...
Rb7 {[%clk 0:00:09.8]} 28. Bd6 {[%clk 0:00:16.9]} 28... Rb6 {[%clk 0:00:06.9]}
29. Ra1 {[%clk 0:00:12.7]} 29... Bxc4 {[%clk 0:00:06.2]} 30. Bxc4 {[%clk
0:00:13.4]} 30... Rxc4 {[%clk 0:00:06.5]} 31. Ra8+ {[%clk 0:00:13]} 31... Rb8
{[%clk 0:00:03.7]} 32. Rxb8+ {[%clk 0:00:13.2]} 1-0

[Event "Late-Titled-Tuesday-Blitz-July-09-2024"]
[Site "Chess.com"]
[Date "2024.07.09"]
[Round "4"]
[White "Love7Unicorn"]
[Black "temus_galaktionov"]
[Result "0-1"]
[WhiteElo "2594"]
[BlackElo "2831"]
[TimeControl "180+1"]
[EndTime "14:39:00 PDT"]
[Termination "temus_galaktionov won by resignation"]

1. d4 {[%clk 0:03:00.9]} 1... c6 {[%clk 0:03:00.9]} 2. c4 {[%clk 0:02:59.9]}
2... g6 {[%clk 0:02:55.4]} 3. Nf3 {[%clk 0:02:55.5]} 3... d6 {[%clk 0:02:54.9]}
4. Nc3 {[%clk 0:02:54.2]} 4... Bg7 {[%clk 0:02:55.2]} 5. g3 {[%clk 0:02:54.4]}
5... Nd7 {[%clk 0:02:55.1]} 6. Bg2 {[%clk 0:02:54.9]} 6... e5 {[%clk 0:02:54.5]}
7. O-O {[%clk 0:02:55.4]} 7... Ngf6 {[%clk 0:02:54.4]} 8. e4 {[%clk 0:02:52.1]}
8... O-O {[%clk 0:02:53.5]} 9. d5 {[%clk 0:02:52.6]} 9... c5 {[%clk 0:02:51]}
10. Ne1 {[%clk 0:02:50.3]} 10... Ne8 {[%clk 0:02:48.5]} 11. Nd3 {[%clk
0:02:50.4]} 11... f5 {[%clk 0:02:42.7]} 12. f4 {[%clk 0:02:50.3]} 12... Qe7
{[%clk 0:02:38]} 13. Bd2 {[%clk 0:02:39.6]} 13... exf4 {[%clk 0:02:32.8]} 14.
Bxf4 {[%clk 0:02:31.3]} 14... Ne5 {[%clk 0:02:32.6]} 15. Nxe5 {[%clk 0:02:27.3]}
15... dxe5 {[%clk 0:02:28]} 16. Be3 {[%clk 0:02:26.9]} 16... Bd7 {[%clk
0:02:09.2]} 17. Qd2 {[%clk 0:02:26.5]} 17... Rc8 {[%clk 0:02:05.9]} 18. Bg5
{[%clk 0:02:17.2]} 18... Qf7 {[%clk 0:02:03.4]} 19. b3 {[%clk 0:02:07.2]} 19...
Nd6 {[%clk 0:02:02.9]} 20. a4 {[%clk 0:02:05.3]} 20... a6 {[%clk 0:02:00.1]} 21.
a5 {[%clk 0:02:03.3]} 21... Qe8 {[%clk 0:01:34.1]} 22. h4 {[%clk 0:01:51.3]}
22... h5 {[%clk 0:01:23.1]} 23. Kh2 {[%clk 0:01:50]} 23... Kh7 {[%clk
0:01:19.5]} 24. Rae1 {[%clk 0:01:44.9]} 24... Qf7 {[%clk 0:01:18.7]} 25. Ra1
{[%clk 0:01:41.4]} 25... Bf6 {[%clk 0:01:03.2]} 26. Bh6 {[%clk 0:01:38.6]} 26...
Rfe8 {[%clk 0:01:02.9]} 27. Bh3 {[%clk 0:01:19]} 27... Qe7 {[%clk 0:00:58.4]}
28. Rf2 {[%clk 0:01:12.8]} 28... f4 {[%clk 0:00:41.2]} 29. gxf4 {[%clk
0:00:38.3]} 29... exf4 {[%clk 0:00:42.1]} 30. Bxd7 {[%clk 0:00:32.1]} 30... Qxd7
{[%clk 0:00:40.8]} 31. Bxf4 {[%clk 0:00:29]} 31... Bxc3 {[%clk 0:00:40.5]} 32.
Qxc3 {[%clk 0:00:25.3]} 32... Nxe4 {[%clk 0:00:40.5]} 33. Qf3 {[%clk 0:00:24.8]}
33... Nxf2 {[%clk 0:00:40.2]} 34. Qxf2 {[%clk 0:00:25.7]} 34... Qg4 {[%clk
0:00:38.8]} 35. Rg1 {[%clk 0:00:22.3]} 35... Re2 {[%clk 0:00:34]} 36. Rxg4
{[%clk 0:00:18.6]} 36... Rxf2+ {[%clk 0:00:33.9]} 37. Kg3 {[%clk 0:00:16.5]}
37... Rb2 {[%clk 0:00:33.3]} 38. Rg5 {[%clk 0:00:16.9]} 38... Rxb3+ {[%clk
0:00:33.2]} 39. Kg2 {[%clk 0:00:17.4]} 39... Rf8 {[%clk 0:00:31.8]} 40. d6
{[%clk 0:00:15.3]} 40... Rxf4 {[%clk 0:00:28.3]} 41. d7 {[%clk 0:00:15.5]} 41...
Rf8 {[%clk 0:00:27.4]} 42. Rxc5 {[%clk 0:00:14]} 42... Rd8 {[%clk 0:00:27.1]}
43. Rd5 {[%clk 0:00:13]} 43... Kg7 {[%clk 0:00:25.7]} 44. c5 {[%clk 0:00:11.7]}
44... Kf7 {[%clk 0:00:25.6]} 0-1

[Event "Late-Titled-Tuesday-Blitz-July-09-2024"]
[Site "Chess.com"]
[Date "2024.07.09"]
[Round "4"]
[White "annasargsyan_m"]
[Black "adrivillu"]
[Result "1-0"]
[WhiteElo "2694"]
[BlackElo "2442"]
[TimeControl "180+1"]
[EndTime "14:39:00 PDT"]
[Termination "annasargsyan_m won by resignation"]

1. d4 {[%clk 0:02:56.7]} 1... Nf6 {[%clk 0:02:57.7]} 2. c4 {[%clk 0:02:57.2]}
2... e6 {[%clk 0:02:57.1]} 3. Nf3 {[%clk 0:02:56.8]} 3... Bb4+ {[%clk
0:02:56.8]} 4. Bd2 {[%clk 0:02:56.4]} 4... Qe7 {[%clk 0:02:57.4]} 5. g3 {[%clk
0:02:56.2]} 5... Bxd2+ {[%clk 0:02:54.5]} 6. Nbxd2 {[%clk 0:02:53.5]} 6... d6
{[%clk 0:02:52.9]} 7. Bg2 {[%clk 0:02:53.9]} 7... e5 {[%clk 0:02:51.8]} 8. e4
{[%clk 0:02:52.2]} 8... O-O {[%clk 0:02:50.2]} 9. h3 {[%clk 0:02:51.1]} 9... a5
{[%clk 0:02:48.5]} 10. O-O {[%clk 0:02:51.1]} 10... Bd7 {[%clk 0:02:42.7]} 11.
Re1 {[%clk 0:02:50.5]} 11... Nc6 {[%clk 0:02:36.7]} 12. Nf1 {[%clk 0:02:49.5]}
12... Nxd4 {[%clk 0:02:19.9]} 13. Nxd4 {[%clk 0:02:50.4]} 13... exd4 {[%clk
0:02:20.8]} 14. Qxd4 {[%clk 0:02:51.3]} 14... Qe5 {[%clk 0:02:21.1]} 15. Qd2
{[%clk 0:02:50]} 15... Bc6 {[%clk 0:02:13.7]} 16. Rac1 {[%clk 0:02:39.5]} 16...
Rfe8 {[%clk 0:02:12.1]} 17. Qc2 {[%clk 0:02:24.1]} 17... Nxe4 {[%clk 0:02:01.7]}
18. Nd2 {[%clk 0:02:11.5]} 18... f5 {[%clk 0:02:01]} 19. Re3 {[%clk 0:02:09.6]}
19... Qd4 {[%clk 0:01:52.8]} 20. Nb3 {[%clk 0:02:03.7]} 20... Qb6 {[%clk
0:01:51.1]} 21. Rce1 {[%clk 0:02:03.3]} 21... a4 {[%clk 0:01:49.3]} 22. Nd2
{[%clk 0:02:01.1]} 22... Nxd2 {[%clk 0:01:47.9]} 23. Rxe8+ {[%clk 0:01:35.7]}
23... Rxe8 {[%clk 0:01:48.8]} 24. Rxe8+ {[%clk 0:01:34.6]} 24... Bxe8 {[%clk
0:01:49.7]} 25. Bd5+ {[%clk 0:01:24.6]} 25... Bf7 {[%clk 0:01:39.4]} 26. Qxf5
{[%clk 0:01:16.9]} 26... Bxd5 {[%clk 0:01:28.8]} 27. Qxd5+ {[%clk 0:01:16.8]}
27... Kf8 {[%clk 0:01:28.9]} 28. Qxd2 {[%clk 0:01:15.1]} 28... Qc5 {[%clk
0:01:23.4]} 29. Qc2 {[%clk 0:01:14.9]} 29... a3 {[%clk 0:01:18.5]} 30. bxa3
{[%clk 0:01:13.1]} 30... Qxa3 {[%clk 0:01:17.3]} 31. Qf5+ {[%clk 0:01:07.4]}
31... Ke7 {[%clk 0:01:12.3]} 32. Qxh7 {[%clk 0:01:07.1]} 32... Qc1+ {[%clk
0:01:04.1]} 33. Kh2 {[%clk 0:01:04.2]} 33... Qxc4 {[%clk 0:01:03.8]} 34. Qxg7+
{[%clk 0:01:04.6]} 34... Kd8 {[%clk 0:01:01.4]} 35. Qf6+ {[%clk 0:00:56.2]}
35... Kd7 {[%clk 0:01:01.2]} 36. h4 {[%clk 0:00:56.6]} 36... Qxa2 {[%clk
0:00:59.4]} 37. h5 {[%clk 0:00:57]} 37... Qe2 {[%clk 0:00:42.6]} 38. h6 {[%clk
0:00:56.3]} 38... Qh5+ {[%clk 0:00:42.2]} 39. Qh4 {[%clk 0:00:46.1]} 39... Qf3
{[%clk 0:00:40.2]} 40. Qf4 {[%clk 0:00:30.5]} 40... Qh5+ {[%clk 0:00:37.3]} 41.
Kg2 {[%clk 0:00:31.1]} 41... b5 {[%clk 0:00:30]} 42. g4 {[%clk 0:00:26.4]} 42...
Qd5+ {[%clk 0:00:29.2]} 43. f3 {[%clk 0:00:27]} 43... Qa2+ {[%clk 0:00:18.6]}
44. Kg3 {[%clk 0:00:26.4]} 44... Qb1 {[%clk 0:00:15.8]} 45. Qf5+ {[%clk
0:00:25.7]} 1-0